lending/lending_fUSD_20240621
["ID","MTS","AMOUNT","RATE_DAILY","PERIOD"]
[330043529,1718961035284,-163.88,0.00021724,2]
[330043530,1718961035294,-162.06,0.00021918,2]
[330043531,1718961035303,-7480.44,0.00022017,2]
[330043532,1718961035312,-150.62551864,0.00022043,2]
[330043533,1718961035321,-154.68938118,0.00022123,2]
[330043534,1718961035332,-150.74997781,0.00022141,2]
[330043535,1718961035343,-166.66666667,0.00022238,2]
[330043536,1718961035354,-7365.09,0.00022283,2]
[330043537,1718961035363,-152.31491691,0.00022319,2]
[330043538,1718961035372,-180.0,0.00022393,2]
[330043539,1718961035383,-221.84708463,0.00022492,2]
[330043540,1718961035392,-167.0,0.00022498,2]
[330043541,1718961035402,-150.74997781,0.00022517,2]
[330043542,1718961035411,-155.0,0.00022529,2]
[330043543,1718961035421,-155.0,0.00022529,2]
[330043544,1718961035432,-513.83262497,0.0002253,2]
[330043545,1718961035441,-154.59692945,0.0002253,2]
[330043546,1718961035451,-532.48747156,0.00022569,2]
[330043547,1718961035461,-163.88,0.00022585,2]
[330043548,1718961035470,-1000.0,0.00022742,5]
[330043549,1718961035480,-154.27131396,0.00022749,2]
[330043550,1718961035489,-2160.06455,0.0002276,2]
[330043551,1718961035499,-5104.7324,0.0002279,2]
[330043552,1718961035508,-2500.0,0.0002279,2]
[330043553,1718961035517,-14289.2278,0.0002279,2]
[330043554,1718961035527,-161.57332437,0.0002279,2]
[330043555,1718961035536,-500.0,0.00022805,2]
[330043556,1718961035546,-1000.0,0.00022806,2]
[330043557,1718961035555,-500.0,0.00022806,2]
[330043558,1718961035565,-500.0,0.00022806,2]
[330043559,1718961035575,-3430.7,0.00022839,2]
[330043560,1718961035585,-161.57332435,0.0002284,2]
[330043561,1718961035594,-1000.0,0.00022845,2]
[330043562,1718961035603,-13377.8574,0.0002289,2]
[330043563,1718961035612,-238.9356,0.0002289,2]
[330043564,1718961035621,-30615.1295,0.0002289,2]
[330043565,1718961035631,-100000.0,0.0002289,2]
[330043566,1718961035641,-175.39668904,0.0002289,2]
[330043567,1718961035650,-161.57332435,0.0002289,2]
[330043568,1718961035659,-17641.0091,0.0002289,2]
[330043569,1718961035668,-948.2577,0.0002289,2]
[330043570,1718961035677,-150.0,0.000229,11]
[330043571,1718961035686,-162.2473133,0.00022908,2]
[330043572,1718961035695,-202.10180189,0.0002298,2]
[330043573,1718961035704,-2428.73520463,0.00022989,2]
[330043574,1718961035713,-670.0,0.0002299,2]
[330043575,1718961035722,-3682.91848947,0.0002299,2]
[330043576,1718961035731,-13794.69739419,0.0002299,5]
[330043577,1718961035745,-6681.85539,0.0002299,5]
[330043578,1718961035757,-667.36237526,0.0002299,5]
[330043579,1718961035768,-6417.03562933,0.0002299,5]
[330043595,1718961038269,-327.1404915,0.0002289,2]
[330043599,1718961038280,-37868.13138925,0.0002299,5]
[330043602,1718961038599,-2553.73808322,0.0002299,5]
[330043603,1718961038611,-9570.15,0.0002299,5]
[330043604,1718961038622,-368.55178233,0.0002299,5]
[330043605,1718961038633,-19140.0,0.0002299,5]
[330043606,1718961038644,-12773.69999999,0.0002299,5]
[330043607,1718961038657,-254723.51000002,0.0002299,5]
[330043609,1718961038853,-1857.98584475,0.0002299,5]
[330043611,1718961038864,-847.24080989,0.0002299,5]
[330043613,1718961038876,-37130.10907675,0.0002299,5]
[330043615,1718961038889,-1916.62142,0.0002299,5]
[330043617,1718961038900,-1103.66427857,0.0002299,5]
[330043664,1718961040001,-228810.47788887,0.0002299,6]
[330043666,1718961040014,-9414.94945962,0.0002299,6]
[330043668,1718961040274,-606.46721129,0.0002299,6]
[330043669,1718961043050,-610.0,0.0002299,2]
[330043671,1718961043061,-1252.86100001,0.0002299,6]
[330043673,1718961043073,-128477.25226292,0.0002299,6]
[330043675,1718961043084,-4363.80000001,0.0002299,6]
[330043694,1718961043355,-366006.226219,0.0002299,6]
[330043697,1718961043368,-307.05023256,0.0002299,6]
[330043699,1718961043383,-93143.51687133,0.0002299,6]
[330043709,1718961043699,-56442.21645485,0.0002299,6]
[330043711,1718961043711,-2092.05389403,0.0002299,6]
[330043728,1718961046066,-155.0,0.00012979,2]
[330043731,1718961046077,-704.8,0.0002299,6]
[330043735,1718961046326,-1592.975,0.0002299,6]
[330043736,1718961046342,-640.35606072,0.0002299,6]
[330043737,1718961046357,-307.78625591,0.0002299,6]
[330043739,1718961046368,-230848.16987619,0.0002299,6]
[330043740,1718961046382,-637.0,0.0002299,6]
[330043745,1718961197805,1000.0,0.00025893,120]
[330043746,1718961206926,200.0,0.00025365,120]
[330043747,1718961207492,200.0,0.00025965,120]
[330043748,1718961505727,1000.0,0.00025,120]
[330043749,1718961529989,1000.0,0.00025,120]
[330044009,1718962234537,-153.9,0.00016907,2]
[330044010,1718962234547,-661.40067281,0.00016912,2]
[330044011,1718962234557,-1420.08142383,0.00016912,2]
[330044012,1718962234567,-169.71,0.00017011,2]
[330044014,1718962234577,-248.9749,0.0001729,2]
[330044016,1718962234587,-544.84546818,0.00019419,2]
[330044019,1718962234599,-266.53453182,0.00019419,2]
[330044021,1718962234609,-499.99,0.00019876,2]
[330044022,1718962234619,-1250.0,0.00021,2]
[330044023,1718962234629,-299.99,0.00021,7]
[330044024,1718962234639,-600.0,0.0002104,2]
[330044025,1718962234648,-168.62,0.00021045,2]
[330044026,1718962234659,-1142.89,0.00021071,2]
[330044027,1718962234668,-2165.36703473,0.0002109,2]
[330044028,1718962235094,-484.55762474,0.0002109,2]
[330044031,1718962235111,-4824.59079939,0.0002109,2]
[330044032,1718962235123,-16425.48454114,0.0002109,2]
[330044033,1718962235133,-250.0,0.00021098,2]
[330044034,1718962235142,-250.0,0.00021164,2]
[330044035,1718962235152,-1223.0,0.000212,4]
[330044036,1718962235163,-5791.0,0.000212,4]
[330044037,1718962235174,-159.35,0.00021235,2]
[330044038,1718962235184,-329.16,0.00021251,30]
[330044039,1718962235193,-159.35,0.0002127,2]
[330044040,1718962235203,-159.35,0.00021306,2]
[330044041,1718962235212,-159.35,0.00021341,2]
[330044043,1718962235221,-4694.46321686,0.00021368,2]
[330044045,1718962235231,-400.0,0.00021643,2]
[330044046,1718962235240,-153.72,0.00021644,2]
[330044048,1718962235250,-811.38,0.00021683,2]
[330044050,1718962235259,-162.06,0.00021918,2]
[330044052,1718962235268,-1000.0,0.00021918,2]
[330044054,1718962235277,-154.59692945,0.00022017,2]
[330044055,1718962235286,-150.62551864,0.00022287,2]
[330044056,1718962235295,-154.59692945,0.00022298,2]
[330044057,1718962235306,-753.01236577,0.00022342,2]
[330044058,1718962235315,-639.19945482,0.00022529,2]
[330044059,1718962235325,-513.83262497,0.0002253,2]
[330044060,1718962235335,-150.0,0.00022542,2]
[330044061,1718962235345,-154.59692945,0.00022542,2]
[330044062,1718962235354,-154.59692945,0.00022599,2]
[330044063,1718962235363,-154.49223323,0.00022732,2]
[330044064,1718962235372,-7386.79,0.00022743,2]
[330044065,1718962235382,-153.95990554,0.00022758,2]
[330044066,1718962235391,-943.46654364,0.00022789,2]
[330044067,1718962235401,-3489.8882,0.0002279,2]
[330044068,1718962235411,-1000.0,0.00022806,2]
[330044069,1718962235420,-150.74997782,0.00022864,2]
[330044070,1718962235432,-1254.7553,0.0002289,2]
[330044071,1718962235441,-382.4278,0.0002289,2]
[330044072,1718962235450,-2709.35921154,0.0002289,2]
[330044073,1718962235459,-399.47005777,0.0002289,2]
[330044074,1718962235468,-2000.0,0.000229,2]
[330044075,1718962235477,-489.0,0.000229,5]
[330044076,1718962235751,-7482.0,0.0002297,2]
[330044077,1718962235761,-517.84,0.0002298,3]
[330044078,1718962235771,-13598.50999999,0.00022985,2]
[330044079,1718962235781,-368.11435877,0.00022985,2]
[330044080,1718962235795,-979.55010331,0.00022986,2]
[330044081,1718962235805,-601.0,0.0002299,2]
[330044082,1718962235816,-2946.40844994,0.0002299,2]
[330044083,1718962235827,-407346.69732061,0.0002299,5]
[330044084,1718962236597,-8728.16981071,0.0002299,5]
[330044085,1718962236609,-648.91747756,0.0002299,5]
[330044086,1718962236621,-2648.80565684,0.0002299,5]
[330044090,1718962239292,-531.79482725,0.0002299,6]
[330044092,1718962239304,-608.78013881,0.0002299,6]
[330044095,1718962239315,-1818.23508318,0.0002299,6]
[330044096,1718962239327,-816.70025,0.0002299,6]
[330044097,1718962239340,-1832.28241582,0.0002299,6]
[330044122,1718962240114,-575.226,0.0002299,6]
[330044156,1718962240461,-4661.42581735,0.0002299,6]
[330044158,1718962240474,-286.83322719,0.0002299,6]
[330044160,1718962240488,-2940.96388949,0.0002299,6]
[330044162,1718962240500,-235934.32013757,0.0002299,6]
[330044171,1718962241347,-1112.54414661,0.0002299,6]
[330044172,1718962241359,-1005.91524944,0.0002299,6]
[330044173,1718962241370,-24616.35195378,0.0002299,6]
[330044174,1718962241382,-1057.74397844,0.0002299,6]
[330044175,1718962241393,-522.445,0.0002299,6]
[330044191,1718962244760,-760.28543964,0.0002299,6]
[330044193,1718962244778,-4853.45619711,0.0002299,6]
[330044195,1718962244793,-836.60016149,0.0002299,6]
[330044199,1718962244805,-1126.43968259,0.0002299,6]
[330044201,1718962244817,-3863.409,0.0002299,6]
[330044202,1718962244829,-911.56536232,0.0002299,6]
[330044203,1718962244842,-10397.62039256,0.0002299,6]
[330044204,1718962244857,-297.79256845,0.0002299,6]
[330044205,1718962244871,-2951.52100116,0.0002299,6]
[330044206,1718962244882,-498.7999998,0.0002299,6]
[330044207,1718962244894,-4650.0,0.0002299,6]
[330044208,1718962244906,-749.12526,0.0002299,6]
[330044209,1718962244918,-3237.59561698,0.0002299,6]
[330044227,1718962247784,-727.95,0.0002299,6]
[330044228,1718962247796,-683.49126662,0.0002299,6]
[330044229,1718962247807,-3431.15037639,0.0002299,6]
[330044230,1718962247819,-229057.68029098,0.0002299,6]
[330044231,1718962247831,-363.83579784,0.0002299,6]
[330044232,1718962247845,-515.80849288,0.0002299,6]
[330044233,1718962394628,1000.0,0.00025834,120]
[330044234,1718962402023,258.670079,0.00025685,120]
[330044237,1718962555289,205.0,9.8e-05,2]
[330044238,1718962619912,157.062118,0.00026,60]
[330044239,1718962621715,157.062118,0.00026,60]
[330044240,1718962622132,157.062118,0.00026,60]
[330044241,1718962622926,157.062118,0.00026,60]
[330044242,1718962623624,157.062118,0.00026,60]
[330044243,1718962624684,157.062118,0.00026,60]
[330044244,1718962630429,157.062118,0.00026,61]
[330044246,1718962631593,157.062118,0.00026,61]
[330044247,1718962632851,157.062118,0.00026,61]
[330044248,1718962633202,157.062118,0.00026,61]
[330044249,1718962633870,157.062118,0.00026,61]
[330044250,1718962634634,157.062118,0.00026,61]
[330044251,1718962639060,157.062118,0.00026,62]
[330044253,1718962639491,315.90118131,0.00025,60]
[330044254,1718962640112,157.062118,0.00026,62]
[330044255,1718962640615,157.062118,0.00026,62]
[330044256,1718962641310,157.062118,0.00026,62]
[330044257,1718962642092,157.062118,0.00026,62]
[330044258,1718962643360,157.062118,0.00026,62]
[330044259,1718962651064,157.062118,0.00026,65]
[330044260,1718962651876,157.062118,0.00026,65]
[330044261,1718962652633,157.062118,0.00026,65]
[330044262,1718962654033,157.062118,0.00026,65]
[330044263,1718962654599,157.062118,0.00026,65]
[330044264,1718962655286,157.062118,0.00026,65]
[330044265,1718962659347,157.062118,0.00026,66]
[330044266,1718962660187,157.062118,0.00026,66]
[330044267,1718962660847,157.062118,0.00026,66]
[330044268,1718962661605,157.062118,0.00026,66]
[330044269,1718962662352,157.062118,0.00026,66]
[330044270,1718962663196,157.062118,0.00026,66]
[330044271,1718962667621,157.062118,0.00026,67]
[330044272,1718962668420,157.062118,0.00026,67]
[330044273,1718962669147,157.062118,0.00026,67]
[330044274,1718962669867,157.062118,0.00026,67]
[330044275,1718962671111,157.062118,0.00026,67]
[330044276,1718962671402,157.062118,0.00026,67]
[330044277,1718962672166,157.062118,0.00026,67]
[330044278,1718962676786,157.062118,0.00026,68]
[330044279,1718962677258,157.062118,0.00026,68]
[330044280,1718962677933,157.062118,0.00026,68]
[330044281,1718962678713,157.062118,0.00026,68]
[330044282,1718962679463,157.062118,0.00026,68]
[330044283,1718962680316,157.062118,0.00026,68]
[330044284,1718962694544,157.062118,0.00026,72]
[330044285,1718962695472,157.062118,0.00026,72]
[330044286,1718962696312,157.062118,0.00026,72]
[330044287,1718962697042,157.062118,0.00026,72]
[330044288,1718962698302,157.062118,0.00026,72]
[330044289,1718962698697,157.062118,0.00026,72]
[330044290,1718962703867,157.062118,0.00026,73]
[330044291,1718962704624,157.062118,0.00026,73]
[330044292,1718962705482,157.062118,0.00026,73]
[330044293,1718962706446,157.062118,0.00026,73]
[330044294,1718962707136,157.062118,0.00026,73]
[330044295,1718962707916,157.062118,0.00026,73]
[330044296,1718962711987,157.062118,0.00026,74]
[330044297,1718962712978,157.062118,0.00026,74]
[330044298,1718962713623,157.062118,0.00026,74]
[330044299,1718962714729,157.062118,0.00026,74]
[330044300,1718962715256,157.062118,0.00026,74]
[330044301,1718962716064,157.062118,0.00026,74]
[330044302,1718962721516,157.062118,0.00026,75]
[330044303,1718962722499,157.062118,0.00026,75]
[330044304,1718962723247,157.062118,0.00026,75]
[330044305,1718962724363,157.062118,0.00026,75]
[330044306,1718962724932,157.062118,0.00026,75]
[330044307,1718962725749,157.062118,0.00026,75]
[330044308,1718962738519,151.062118,0.00026,60]
[330044309,1718962739357,151.062118,0.00026,60]
[330044310,1718962740084,151.062118,0.00026,60]
[330044311,1718962740904,151.062118,0.00026,60]
[330044312,1718962742404,151.062118,0.00026,60]
[330044313,1718962742693,151.062118,0.00026,60]
[330044314,1718962753452,151.062118,0.00026,61]
[330044315,1718962754344,151.062118,0.00026,61]
[330044316,1718962754990,151.062118,0.00026,61]
[330044317,1718962755835,151.062118,0.00026,61]
[330044318,1718962760071,151.062118,0.00026,62]
[330044319,1718962760914,151.062118,0.00026,62]
[330044320,1718962761664,151.062118,0.00026,62]
[330044321,1718962762410,151.062118,0.00026,62]
[330044325,1718962770522,151.062118,0.00026,65]
[330044326,1718962771387,151.062118,0.00026,65]
[330044327,1718962785935,197.062118,0.00026,66]
[330044329,1718963127523,500.0,0.00026,60]
[330044330,1718963132709,500.0,0.00026,60]
[330044331,1718963136999,500.0,0.00026,60]
[330044332,1718963141206,500.0,0.00026,60]
[330044333,1718963145445,500.0,0.00026,60]
[330044334,1718963150259,500.0,0.00026,60]
[330044335,1718963154387,500.0,0.00026,60]
[330044336,1718963158880,500.0,0.00026,60]
[330044337,1718963163314,500.0,0.00026,60]
[330044338,1718963167414,500.0,0.00026,60]
[330044441,1718963434217,-482.87677638,0.0001308,2]
[330044442,1718963434230,-638.68830435,0.0001308,2]
[330044443,1718963434243,-484.28691844,0.0001308,2]
[330044444,1718963434255,-7675.49126204,0.0001308,2]
[330044445,1718963434264,-300.0,0.00013998,2]
[330044446,1718963434273,-315.38689517,0.00013999,2]
[330044447,1718963434283,-4680.18489615,0.00014,2]
[330044448,1718963434294,-710.59577829,0.00014,2]
[330044449,1718963434305,-203163.88704726,0.00014,2]
[330044450,1718963434316,-897.76498644,0.00014,2]
[330044451,1718963434327,-2500.0,0.00014,2]
[330044452,1718963434338,-354.60077369,0.00014,2]
[330044456,1718963439740,-4375.72993947,0.00014,2]
[330044457,1718963439753,-185364.02710464,0.00014,2]
[330044458,1718963440237,-251.29173478,0.00014,2]
[330044491,1718963446138,-528.18244504,0.00013898,2]
[330044494,1718963446536,-82.72022155,0.00013898,2]
[330044498,1718963446546,-776.10918827,0.00014,2]
[330044502,1718963446558,-1925.30842899,0.00014,2]
[330044505,1718963446570,-488.66964,0.00014,2]
[330044507,1718963446581,-643.23488832,0.00014,2]
[330044509,1718963446593,-3000.46139992,0.00014,2]
[330044514,1718963447068,-1673.24042117,0.00014,2]
[330044515,1718963447080,-3883.54834729,0.00014,2]
[330044516,1718963447092,-2927.94435408,0.00014,2]
[330044517,1718963447103,-3529.18382386,0.00014,2]
[330044519,1718963447410,-7365.77296005,0.00014,2]
[330044522,1718963550147,150.5,0.00015123,30]
[330044523,1718963551268,175.0,0.00015123,30]
[330044524,1718963551323,150.5,0.00015113,30]
[330044525,1718963551467,175.0,0.00015113,30]
[330044526,1718963551504,270.61,0.00015103,30]
[330044527,1718963552076,175.0,0.00015103,30]
[330044528,1718963597324,1000.0,0.00025857,120]
[330044529,1718963670019,265.0,0.00015123,30]
[330044530,1718963670259,150.5,0.00015123,30]
[330044531,1718963670357,185.98,0.00015123,30]
[330044532,1718963670518,265.0,0.00015113,30]
[330044533,1718963671907,265.0,0.00015103,30]
[330044534,1718963671983,150.5,0.00015123,30]
[330044535,1718963672187,150.5,0.00015113,30]
[330044536,1718963672561,150.5,0.00015103,30]
[330044539,1718963790067,150.5,0.0001499,30]
[330044540,1718963793090,150.5,0.0001499,30]
[330044541,1718963793333,150.5,0.0001498,30]
[330044542,1718963793571,150.5,0.0001497,30]
[330044543,1718963913050,150.5,0.0001499,30]
[330044544,1718963913264,176.5,0.0001498,30]
[330044545,1718964031160,185.0,0.0001499,30]
[330044546,1718964033389,185.0,0.0001498,30]
[330044547,1718964033618,185.0,0.0001497,30]
[330044549,1718964392046,150.5,0.0001499,30]
[330044550,1718964392900,150.5,0.0001498,30]
[330044551,1718964393491,150.5,0.0001497,30]
[330044552,1718964427610,328.86,0.00026,60]
[330044580,1718964631905,-6951.42915819,0.000138,2]
[330044583,1718964631917,-5322.0791958,0.000138,2]
[330044589,1718964632354,-2861.46392479,0.000138,2]
[330044590,1718964632365,-883.54995,0.000138,2]
[330044591,1718964632376,-846.47,0.000138,2]
[330044592,1718964632387,-350.2299999,0.000138,2]
[330044593,1718964632398,-6438.99365426,0.000138,2]
[330044594,1718964632410,-808.43883767,0.000138,2]
[330044595,1718964632419,-11026.39262096,0.00014,2]
[330044596,1718964632430,-506.945,0.00014,2]
[330044597,1718964632442,-3800.77925664,0.00014,2]
[330044614,1718964638982,-3900.0,0.00014,2]
[330044617,1718964638994,-771.07115909,0.00014,2]
[330044619,1718964639005,-987.45743925,0.00014,2]
[330044621,1718964639016,-758.11221771,0.00014,2]
[330044623,1718964639028,-3500.5685945,0.00014,2]
[330044625,1718964639039,-463.69679999,0.00014,2]
[330044626,1718964639051,-7775.9653312,0.00014,2]
[330044627,1718964639064,-256.89613642,0.00014,2]
[330044628,1718964639073,-114.69530232,0.00014,2]
[330044629,1718964639085,-1814.56851,0.00014,2]
[330044630,1718964639097,-370.78997768,0.00014,2]
[330044631,1718964639107,-661.73267933,0.00014914,2]
[330044632,1718964639117,-154.924553,0.00014914,2]
[330044633,1718964639127,-190.85369923,0.00014914,2]
[330044634,1718964639137,-195.76537333,0.0001499,2]
[330044635,1718964639147,-1182.14697331,0.00014999,5]
[330044636,1718964639158,-29378.51294651,0.00015,2]
[330044735,1718964640451,-2399.05344702,0.00015,2]
[330044736,1718964640463,-3207.735,0.00015,2]
[330044737,1718964640482,-2837.74696614,0.00015,2]
[330044738,1718964640493,-1945.59856062,0.00015,2]
[330044739,1718964640865,-933.32660171,0.00015,2]
[330044743,1718964643007,-3219.5262,0.00015,2]
[330044760,1718964643439,-3262.44251899,0.00015,2]
[330044762,1718964643451,-293.45670071,0.00015,2]
[330044763,1718964643462,-1285907.3311346,0.00015,2]
[330044768,1718964646688,-2756.61456321,0.00015,2]
[330044769,1718964647846,-327.14049148,0.00014914,2]
[330044770,1718964647856,-2883.20950852,0.00015,2]
[330044771,1718964648272,-3212.13211724,0.00015,2]
[330044776,1718964690944,941.5246699,0.00025999,60]
[330044778,1718964797364,1000.0,0.00025011,120]
[330044788,1718965565054,1000.0,0.00025,60]
[330044830,1718965832769,-2150.85297,0.00011908,2]
[330044831,1718965832780,-3438.58852372,0.00011908,2]
[330044832,1718965832789,-4449.51330229,0.00011999,2]
[330044833,1718965832799,-12745.04310944,0.000138,2]
[330044834,1718965832808,-380.47255112,0.00014552,2]
[330044835,1718965832818,-2416.7115,0.0001485,2]
[330044836,1718965832828,-154.924553,0.00014914,2]
[330044837,1718965832837,-12469.00144837,0.0001498,2]
[330044838,1718965832848,-195.76537334,0.0001499,2]
[330044839,1718965832857,-190133.06405408,0.00015,2]
[330044840,1718965832868,-3545.23594935,0.00015,2]
[330044902,1718965839114,-1001.31929949,0.00015,2]
[330044903,1718965839126,-264.24,0.00015,2]
[330044904,1718965839138,-1994.87656404,0.00015,2]
[330044905,1718965839478,-260.12215209,0.00015,2]
[330044906,1718965839490,-27284.94492335,0.00015,2]
[330044923,1718965840540,-2194.7284053,0.00015,2]
[330044927,1718965840554,-656.34209886,0.00015,2]
[330044929,1718965840991,-691.24478564,0.00015,2]
[330044931,1718965841004,-38345.4209184,0.00015,2]
[330044939,1718965843756,-676.12956,0.00015,2]
[330044940,1718965843770,-353409.03868971,0.00015,2]
[330044941,1718965843780,-150.99,0.00015,2]
[330044942,1718965843790,-5000.0,0.00015,2]
[330044943,1718965843800,-327.41,0.00015014,2]
[330044944,1718965843811,-499.99,0.00015014,2]
[330044945,1718965843821,-150.0,0.00015014,2]
[330044946,1718965843831,-836.29,0.0001647,2]
[330044947,1718965843842,-2416.7115,0.0001735,2]
[330044948,1718965843852,-250.0,0.00018318,2]
[330044949,1718965843862,-250.0,0.000184,2]
[330044950,1718965843872,-1039.39,0.00018409,2]
[330044951,1718965843882,-23900.0,0.0001854,2]
[330044952,1718965843892,-1000.0,0.00018561,2]
[330044953,1718965843902,-163.88,0.00018663,2]
[330044954,1718965843912,-161.26,0.00018674,2]
[330044955,1718965843923,-836.29,0.00018734,2]
[330044956,1718965843933,-301.73,0.00018849,30]
[330044957,1718965843943,-154.92455299,0.00018902,2]
[330044958,1718965843956,-250.0,0.00019178,2]
[330044959,1718965843966,-167.0,0.00019216,2]
[330044960,1718965843976,-167.0,0.00019312,2]
[330044961,1718965843986,-211.0929027,0.00019714,2]
[330044962,1718965843998,-151.68,0.00019715,2]
[330044963,1718965844008,-152.69,0.0001972,2]
[330044964,1718965844018,-2416.7115,0.0001985,2]
[330044965,1718965844029,-1278.63374008,0.0002,2]
[330044966,1718965844039,-571.77,0.0002,5]
[330044967,1718965844049,-1272.72768202,0.0002,2]
[330044968,1718965844059,-180.0,0.00020444,2]
[330044969,1718965844069,-1000.0,0.00020881,2]
[330044970,1718965844079,-1162.0,0.000209,4]
[330044971,1718965844093,-5211.0,0.000209,4]
[330044972,1718965844103,-836.29,0.00020998,2]
[330044973,1718965844113,-1250.0,0.00021,2]
[330044974,1718965844124,-1039.39,0.00021149,2]
[330044975,1718965844134,-476.533,0.00021292,2]
[330044976,1718965844144,-290.0,0.00021292,2]
[330044977,1718965844153,-1067.0,0.00021292,2]
[330044978,1718965844163,-438.01,0.00021644,2]
[330044979,1718965844173,-584.74,0.00021644,2]
[330044980,1718965844184,-153.72,0.00021644,2]
[330044981,1718965844194,-163.88,0.00021744,2]
[330044982,1718965844204,-24777.48,0.00021757,2]
[330044983,1718965844214,-1506.21,0.00021757,2]
[330044984,1718965844224,-210331.19817821,0.000218,3]
[330044985,1718965844238,-815.56430584,0.000218,3]
[330044986,1718965844250,-809.05905698,0.000218,3]
[330044987,1718965844263,-27640.33276697,0.000218,3]
[330044988,1718965844273,-162.06,0.00021918,2]
[330044989,1718965844283,-2245.04937117,0.00022,2]
[330044990,1718965844293,-708.18,0.00022164,2]
[330044992,1718965844303,-150.74997782,0.00022287,2]
[330044993,1718965844313,-500.0,0.00022305,2]
[330044994,1718965844324,-222.25,0.00022305,2]
[330044995,1718965844334,-152.31491692,0.00022331,2]
[330044996,1718965844344,-2416.7115,0.0002235,2]
[330044997,1718965844355,-1213.17657887,0.00022379,2]
[330044998,1718965844365,-167.0,0.00022387,2]
[330045000,1718965844375,-1213.17657884,0.00022425,2]
[330045002,1718965844385,-1213.17657884,0.00022472,2]
[330045004,1718965844395,-52851.15498741,0.00022479,3]
[330045006,1718965844408,-2043.72080312,0.00022479,3]
[330045008,1718965844528,376.0,0.00026,120]
[330045013,1718965846801,-2525.25727382,0.00014999,2]
[330045014,1718965846811,-11937.36167102,0.00022479,3]
[330045015,1718965846824,-35851.82867045,0.00022479,3]
[330045016,1718965846835,-2357.18568812,0.00022479,2]
[330045017,1718965846846,-426.9666438,0.00022488,2]
[330045018,1718965846858,-160.17583788,0.00022488,2]
[330045019,1718965846867,-104007.17339399,0.00022489,7]
[330045020,1718965846877,-106204.21755996,0.00022489,7]
[330045021,1718965846887,-167.0,0.000225,2]
[330045022,1718965846899,-1213.17657884,0.00022518,2]
[330045023,1718965846909,-153.29,0.00022524,2]
[330045024,1718965846919,-150.24,0.00022525,2]
[330045025,1718965846933,-513.28686646,0.0002253,2]
[330045026,1718965846944,-152.207218,0.00022562,7]
[330045027,1718965846961,-151.0,0.00022562,7]
[330045028,1718965846982,-151.0,0.00022562,7]
[330045029,1718965846996,-151.0,0.00022562,7]
[330045030,1718965847010,-169.857356,0.00022562,7]
[330045031,1718965847020,-151.0,0.00022562,7]
[330045032,1718965847029,-151.0,0.00022562,7]
[330045033,1718965847039,-151.0,0.00022562,7]
[330045034,1718965847050,-153.727095,0.00022562,7]
[330045035,1718965847059,-151.0,0.00022562,7]
[330045036,1718965847068,-151.0,0.00022562,7]
[330045037,1718965847077,-151.0,0.00022562,7]
[330045038,1718965847087,-157.993012,0.00022562,7]
[330045039,1718965847096,-151.0,0.00022562,7]
[330045040,1718965847105,-155.507756,0.00022562,7]
[330045041,1718965847114,-157.993012,0.00022562,7]
[330045042,1718965847123,-151.0,0.00022562,7]
[330045043,1718965847133,-151.0,0.00022562,7]
[330045044,1718965847143,-188.477934,0.00022562,7]